bitfinex-derivatives/quotes_SOLF0:USTF0_20250318
["timestamp","ask_amount","ask_price","bid_price","bid_amount"]
[1742312962541,8.1535,122.66,122.64,268.92]
[1742312963039,34.80680924,122.67,122.64,268.92]
[1742312963238,8.1539,122.65,122.64,268.92]
[1742312963443,8.1539,122.65,122.62,8.1556]
[1742312963644,21.51602294,122.66,122.62,8.1556]
[1742312963843,8.1549,122.64,122.62,8.1556]
[1742312964044,8.1549,122.64,122.61,30.5]
[1742312964045,8.1549,122.64,122.61,8.1562]
[1742312964242,8.21374684,122.64,122.61,8.1562]
[1742312964637,8.1552,122.63,122.6,307.5969]
[1742312964836,0.05884684,122.64,122.6,268.94]
[1742312965240,0.05884684,122.64,122.63,8.1552]
[1742312966947,0.05884684,122.64,122.6,268.94]
[1742312966948,0.05884684,122.64,122.62,8.1555]
[1742312967649,8.21354684,122.64,122.61,8.1562]
[1742312967948,0.05884684,122.64,122.6,268.94]
[1742312968147,8.1555,122.63,122.6,277.0969]
[1742312968543,8.1559,122.62,122.6,268.94]
[1742312969746,8.1555,122.63,122.6,277.0972]
[1742312970146,8.1555,122.63,122.6,268.94]
[1742312970450,8.156,122.62,122.6,268.94]
[1742312971851,8.156,122.62,122.6,277.0972]
[1742312972250,8.156,122.62,122.6,268.94]
[1742312973143,8.156,122.62,122.6,277.0972]
[1742312974257,8.156,122.62,122.6,268.94]
[1742312975351,8.1565,122.61,122.6,268.94]
[1742312976648,8.1562,122.62,122.6,268.94]
[1742312977259,8.1565,122.61,122.6,268.94]
[1742312977657,13.79715574,122.62,122.6,268.94]
[1742312977959,21.95365574,122.62,122.6,268.94]
[1742312979064,21.95365574,122.62,122.6,277.0971]
[1742312979763,23.97655574,122.63,122.6,277.0971]
[1742312979965,15.82105574,122.63,122.6,277.0971]
[1742312980663,8.1562,122.62,122.6,277.0971]
[1742312980862,13.79715574,122.62,122.6,268.94]
[1742312981264,8.1565,122.61,122.6,268.94]
[1742312981863,13.79715574,122.62,122.6,277.0967]
[1742312982070,15.82105574,122.63,122.6,277.0967]
[1742312982569,8.1563,122.62,122.6,277.0967]
[1742312982872,8.1563,122.62,122.6,268.94]
[1742312983473,8.1565,122.61,122.6,268.94]
[1742312984573,21.95335574,122.62,122.6,277.0972]
[1742312984772,13.79715574,122.63,122.6,268.94]
[1742312985375,21.95295574,122.63,122.6,277.0968]
[1742312986376,8.1558,122.63,122.6,277.0968]
[1742312986975,8.1558,122.63,122.61,8.1564]
[1742312987373,8.1558,122.63,122.6,277.0968]
[1742312987576,8.1559,122.62,122.6,277.0968]
[1742312988178,8.1565,122.61,122.6,268.94]
[1742312988567,13.79715574,122.62,122.6,268.94]
[1742312988975,13.79715574,122.63,122.6,268.94]
[1742312989278,8.1559,122.62,122.6,277.0968]
[1742312989973,21.95305574,122.62,122.6,268.94]
[1742312990375,8.1565,122.61,122.6,268.94]
[1742312992280,13.79715574,122.62,122.6,268.94]
[1742312992976,13.79715574,122.62,122.6,277.0971]
[1742312993177,13.79715574,122.62,122.6,268.94]
[1742312993577,8.1565,122.61,122.6,268.94]
[1742312995477,21.95365574,122.61,122.6,268.94]
[1742312995781,8.1573,122.6,122.58,8.1581]
[1742312995983,13.79715574,122.61,122.59,8.1578]
[1742312996182,0.06221397,122.6,122.59,8.1578]
[1742312996378,13.85936971,122.6,122.56,269.14]
[1742312996583,13.85936971,122.6,122.58,8.1583]
[1742312996779,8.21951397,122.6,122.58,8.1583]
[1742312997684,8.21951397,122.6,122.57,8.1588]
[1742312998083,8.21951397,122.6,122.56,282.93715574]
[1742312998284,0.06221397,122.6,122.56,282.93715574]
[1742312998484,0.06221397,122.6,122.58,8.1583]
[1742312999186,13.85936971,122.6,122.57,8.1589]
[1742312999386,13.79715574,122.58,122.52,269.14]
[1742312999686,21.95675574,122.57,122.53,21.95835574]
[1742312999884,0.05676085,122.56,122.53,13.79715574]
[1742313000281,0.05676085,122.56,122.53,21.95875574]
[1742313000684,0.05676085,122.56,122.52,282.93715574]
[1742313000884,8.1609,122.55,122.52,282.93715574]
[1742313001282,0.05676085,122.56,122.52,282.93715574]
[1742313001482,8.1615,122.54,122.52,282.93715574]
[1742313001686,8.1615,122.54,122.52,299.66]
[1742313001886,13.79715574,122.54,122.52,269.14]
[1742313002086,8.1619,122.53,122.52,269.14]
[1742313002578,21.95865574,122.54,122.52,269.14]
[1742313002781,13.79715574,122.54,122.52,269.14]
[1742313002983,44.31715574,122.55,122.52,269.14]
[1742313003190,30.52,122.55,122.52,269.14]
[1742313003690,38.681,122.55,122.52,277.3023]
[1742313003990,44.31715574,122.55,122.52,269.14]
[1742313004189,30.52,122.55,122.52,277.3022]
[1742313004592,30.52,122.55,122.52,269.14]
[1742313004793,0.05676085,122.56,122.52,282.93715574]
[1742313005489,0.05676085,122.56,122.53,13.79715574]
[1742313005792,0.05676085,122.56,122.54,44.31715574]
[1742313006188,0.05676085,122.56,122.55,8.1605]
[1742313010095,164.0,122.55,122.45,44.66762384]
[1742313010289,13.79715574,122.49,122.45,44.66762384]
[1742313010491,21.96275574,122.48,122.45,44.66762384]
[1742313010900,22.02270774,122.48,122.45,44.66762384]
[1742313011101,0.059952,122.48,122.45,44.66762384]
[1742313011700,0.059952,122.48,122.45,58.46477958]
[1742313012091,0.059952,122.48,122.45,44.66762384]
[1742313012301,8.225252,122.48,122.45,44.66762384]
[1742313012491,13.85710774,122.48,122.45,44.66762384]
[1742313012691,8.1663,122.47,122.45,44.66762384]
[1742313013196,13.79715574,122.47,122.45,44.66762384]
[1742313013393,13.85710774,122.48,122.45,44.66762384]
[1742313013896,8.1661,122.47,122.45,44.66762384]
[1742313014098,8.1661,122.47,122.44,269.28]
[1742313014293,13.85710774,122.48,122.44,269.28]
[1742313014489,8.1664,122.47,122.44,269.28]
[1742313014997,8.1665,122.46,122.44,269.28]
[1742313016605,8.1662,122.47,122.44,269.28]
[1742313017204,13.85710774,122.48,122.44,269.28]
[1742313017406,8.1667,122.46,122.44,269.28]
[1742313017600,13.79715574,122.46,122.44,269.28]
[1742313017905,13.79715574,122.45,122.41,13.79715574]
[1742313018103,30.52,122.46,122.41,13.79715574]
[1742313018104,44.31715574,122.46,122.41,13.79715574]
[1742313018301,44.31715574,122.46,122.41,21.96675574]
[1742313018606,0.05256997,122.44,122.41,13.79715574]
[1742313018802,8.22086997,122.44,122.4,313.67715574]
[1742313019099,22.01802571,122.44,122.4,299.88]
[1742313019308,8.1696,122.42,122.4,269.34]
[1742313019499,13.79715574,122.43,122.4,269.34]
[1742313019699,44.33715574,122.43,122.4,269.34]
[1742313020501,52.50615574,122.43,122.4,269.34]
[1742313021309,21.96645574,122.42,122.4,269.34]
[1742313021500,13.79715574,122.41,122.4,269.34]
[1742313021901,13.79715574,122.41,122.37,2.0018]
[1742313022101,13.79715574,122.39,122.36,269.42]
[1742313022308,13.79715574,122.38,122.35,8.1735]
[1742313022602,0.06105002,122.4,122.37,13.79715574]
[1742313022901,52.50545574,122.44,122.39,13.79715574]
[1742313023111,52.16172864,122.46,122.38,299.96]
[1742313023401,0.05643446,122.43,122.38,299.96]
[1742313024500,0.05643446,122.43,122.39,21.62172864]
[1742313024695,0.05643446,122.43,122.42,8.1692]
[1742313024900,0.05643446,122.43,122.42,38.7092]
[1742313033517,0.05643446,122.43,122.41,8.1697]
[1742313034721,0.05643446,122.43,122.4,30.54]
[1742313035321,0.05643446,122.43,122.42,8.1692]
[1742313037519,0.05643446,122.43,122.41,8.1696]
[1742313037913,8.22523446,122.43,122.4,8.1702]
[1742313039825,0.05643446,122.43,122.41,8.1698]
[1742313040923,8.22503446,122.43,122.4,8.1702]
[1742313041926,21.6781631,122.43,122.39,30.54]
[1742313042127,21.6781631,122.43,122.38,269.42]
[1742313042528,29.79222864,122.41,122.38,269.42]
[1742313042824,21.62172864,122.39,122.35,91.42836598]
[1742313043024,21.62172864,122.39,122.35,30.54]
[1742313043222,21.62172864,122.39,122.35,38.7134]
[1742313043525,0.05942804,122.38,122.35,30.54]
[1742313043824,0.05942804,122.38,122.36,8.1729]
[1742313044014,0.05942804,122.38,122.35,30.54]
[1742313044215,0.05942804,122.38,122.37,8.1725]
[1742313049733,0.05942804,122.38,122.36,8.1729]
[1742313050032,0.05942804,122.38,122.35,30.54]
[1742313050235,0.05942804,122.38,122.36,8.1732]
[1742313050430,0.05942804,122.38,122.35,30.54]
[1742313051432,0.05942804,122.38,122.37,8.1725]
[1742313051633,0.05942804,122.38,122.35,30.54]
[1742313052038,0.05942804,122.38,122.36,8.1728]
[1742313052523,0.05942804,122.38,122.35,8.1736]
[1742313052927,8.23182804,122.38,122.35,8.1736]
[1742313053328,8.1729,122.37,122.34,277.6941]
[1742313053733,21.62172864,122.36,122.3,280.76690596]
[1742313054038,8.1743,122.35,122.3,280.76690596]
[1742313054338,0.05939951,122.34,122.3,269.6]
[1742313054934,0.05939951,122.34,122.33,8.1752]
[1742313055134,0.05939951,122.34,122.3,269.6]
[1742313055342,0.05939951,122.34,122.3,300.14]
[1742313055537,0.05939951,122.34,122.32,8.1758]
[1742313058739,0.05939951,122.34,122.33,38.7152]
[1742313059942,0.05939951,122.34,122.33,30.54]
[1742313060744,0.05939951,122.34,122.33,38.7152]
[1742313061143,0.05939951,122.34,122.33,8.1752]
[1742313062040,0.05939951,122.34,122.32,38.7156]
[1742313062844,0.05939951,122.34,122.3,300.14]
[1742313063145,13.92042519,122.34,122.3,300.14]
[1742313063340,13.92042519,122.34,122.32,8.1758]
[1742313063542,13.92042519,122.34,122.3,314.00102568]
[1742313063743,0.05939951,122.34,122.3,314.00102568]
[1742313064044,0.05939951,122.34,122.33,8.1752]
[1742313064255,0.05939951,122.34,122.33,52.81622568]
[1742313065140,0.05939951,122.34,122.33,38.9552]
[1742313072353,9.951e-05,122.34,122.33,60.5986383]
[1742313073350,4.2681,122.4,122.38,8.1715]
[1742313073550,384.6434383,122.46,122.39,30.98]
[1742313073551,23.6624383,122.45,122.39,30.98]
[1742313073750,27.8445383,122.45,122.39,30.98]
[1742313074053,58.8045383,122.45,122.39,30.98]
[1742313074548,8.2304886,122.43,122.41,0.05520118]
[1742313074954,0.0618886,122.43,122.41,0.05520118]
[1742313075653,0.0618886,122.43,122.41,8.22470118]
[1742313075855,0.0618886,122.43,122.41,0.05520118]
[1742313076357,8.2304886,122.43,122.41,0.05520118]
[1742313076549,21.7053269,122.43,122.41,0.05520118]
[1742313076748,30.98,122.42,122.36,269.68]
[1742313077051,21.6434383,122.41,122.36,269.68]
[1742313077251,39.1495,122.42,122.36,269.68]
[1742313078055,0.05969282,122.4,122.36,269.68]
[1742313078356,0.05969282,122.4,122.39,8.1712]
[1742313078551,0.05969282,122.4,122.39,39.1312]
[1742313079759,0.05969282,122.4,122.39,30.96]
[1742313080450,0.05969282,122.4,122.39,39.1312]
[1742313080753,0.05969282,122.4,122.39,30.96]
[1742313081056,0.05969282,122.4,122.37,39.0923]
[1742313081257,0.05969282,122.4,122.37,30.92]
[1742313081459,0.05969282,122.4,122.38,8.1715]
[1742313081651,0.05969282,122.4,122.37,30.92]
[1742313082153,0.05969282,122.4,122.39,8.1712]
[1742313084657,0.05969282,122.4,122.38,39.1314]
[1742313085256,0.05969282,122.4,122.39,8.1712]
[1742313087265,13.90352832,122.4,122.38,39.1318]
[1742313091568,13.90352832,122.4,122.38,8.1718]
[1742313091770,13.8438355,122.39,122.36,300.42]
[1742313092367,13.8438355,122.39,122.36,308.6129]
[1742313092767,22.0152355,122.39,122.36,300.44]
[1742313092963,13.8438355,122.38,122.36,300.44]
[1742313093370,13.8438355,122.39,122.36,308.6131]
[1742313094065,22.0150355,122.39,122.36,308.6131]
[1742313094381,22.0150355,122.39,122.36,300.44]
[1742313095070,0.05969282,122.4,122.36,314.2838355]
[1742313095267,0.05969282,122.4,122.37,13.8438355]
[1742313095571,0.05969282,122.4,122.39,13.8438355]
[1742313095769,0.05969282,122.4,122.39,52.8950355]
[1742313097578,13.8438355,122.45,122.42,8.1689]
[1742313097774,13.8438355,122.45,122.42,39.0089]
[1742313098373,13.8438355,122.45,122.42,30.84]
[1742313098678,13.90104482,122.45,122.42,30.90169259]
[1742313098871,13.90104482,122.45,122.42,39.07089259]
[1742313099077,22.06834482,122.45,122.42,30.90169259]
[1742313099769,22.0119355,122.44,122.42,30.90169259]
[1742313101975,13.8438355,122.44,122.42,30.90169259]
[1742313102376,0.05720932,122.45,122.42,30.90169259]
[1742313102576,0.05720932,122.45,122.42,300.46169259]
[1742313103572,13.90104482,122.45,122.42,300.46169259]
[1742313104580,22.06854482,122.45,122.42,300.46169259]
[1742313104973,13.90104482,122.45,122.42,300.46169259]
[1742313105375,0.05720932,122.45,122.42,300.46169259]
[1742313105881,0.05720932,122.45,122.44,8.1679]
[1742313106675,0.05720932,122.45,122.43,8.1681]
[1742313106878,0.05720932,122.45,122.42,300.46169259]
[1742313107380,0.05720932,122.45,122.44,8.1679]
[1742313108880,13.90104482,122.45,122.42,269.62169259]
[1742313109078,13.8438355,122.43,122.42,269.62169259]
[1742313110577,13.8438355,122.44,122.42,269.62169259]
[1742313110983,13.8438355,122.44,122.42,277.79029259]
[1742313111784,13.90104482,122.45,122.42,269.62169259]
[1742313111974,0.05720932,122.45,122.42,269.62169259]
[1742313112179,0.05720932,122.45,122.43,30.82]
[1742313112680,0.05720932,122.45,122.44,8.1679]
[1742313114281,13.90104482,122.45,122.43,38.9882]
[1742313115279,13.90104482,122.45,122.44,8.1679]
[1742313116490,13.90104482,122.45,122.43,38.9882]
[1742313116887,13.8438355,122.44,122.43,30.82]
[1742313117089,13.90104482,122.45,122.42,269.62169259]
[1742313117690,13.90104482,122.45,122.43,8.1683]
[1742313117989,13.90104482,122.45,122.42,269.62169259]
[1742313118184,0.05720932,122.45,122.42,269.62169259]
[1742313118384,13.90104482,122.45,122.42,269.62169259]
[1742313118780,13.90104482,122.45,122.42,277.79059259]
[1742313119189,0.05720932,122.45,122.42,277.79059259]
[1742313119490,13.90104482,122.45,122.42,277.79059259]
[1742313120084,22.06834482,122.45,122.42,277.79059259]
[1742313120592,13.90104482,122.45,122.42,269.62169259]
[1742313120796,0.05720932,122.45,122.42,269.62169259]
[1742313121088,0.05720932,122.45,122.44,8.1679]
[1742313121589,0.05720932,122.45,122.44,52.7717355]
[1742313122783,0.05720932,122.45,122.44,38.9279]
[1742313122985,0.05720932,122.45,122.44,30.76]
[1742313125390,0.05720932,122.45,122.44,52.7717355]
[1742313125592,22.0078355,122.5,122.44,44.6038355]
[1742313125785,22.0078355,122.5,122.46,8.1661]
[1742313126386,8.1646,122.49,122.45,22.0106355]
[1742313126697,13.8438355,122.5,122.45,13.8438355]
[1742313126897,0.05913145,122.48,122.46,0.05769073]
[1742313127086,0.05913145,122.48,122.46,8.22389073]
[1742313127286,0.05913145,122.48,122.47,30.72]
[1742313128295,8.22433145,122.48,122.47,30.72]
[1742313128596,0.05913145,122.48,122.47,30.72]
[1742313129191,8.22433145,122.48,122.47,30.72]
[1742313129390,0.05913145,122.48,122.47,30.72]
[1742313129792,8.22433145,122.48,122.47,30.72]
[1742313130189,22.06816695,122.48,122.47,30.72]
[1742313130400,8.1659,122.47,122.46,0.05769073]
[1742313130594,22.0097355,122.47,122.46,0.05769073]
[1742313132002,8.1677,122.45,122.42,308.4691]
[1742313133102,8.22735914,122.45,122.42,308.52868562]
[1742313135605,0.05965914,122.45,122.43,8.1682]
[1742313135806,0.05965914,122.45,122.42,300.35958562]
[1742313136195,0.05965914,122.45,122.44,8.1679]
[1742313138611,2.0857,122.52,122.48,8.1649]
[1742313139007,2.0857,122.52,122.47,30.64]
[1742313139201,10.2485,122.52,122.48,8.1647]
[1742313139698,8.1637,122.51,122.47,38.8055]
[1742313139906,0.05203873,122.51,122.49,0.05932774]
[1742313142101,0.05203873,122.51,122.49,8.22372774]
[1742313142807,0.05203873,122.51,122.5,8.1639]
[1742313143310,0.05203873,122.51,122.49,8.22352774]
[1742313144207,0.05203873,122.51,122.49,0.05932774]
[1742313145410,8.1639,122.5,122.49,0.05932774]
[1742313148209,32.83573873,122.51,122.49,0.05932774]
[1742313149509,8.1639,122.5,122.49,0.05932774]
[1742313149914,21.61724246,122.5,122.44,269.42]
[1742313150108,8.1669,122.46,122.44,269.42]
[1742313150308,52.23724246,122.48,122.44,269.42]
[1742313151115,8.167,122.46,122.45,0.06112556]
[1742313152718,8.21828862,122.47,122.45,8.22832556]
[1742313153304,0.05208862,122.47,122.46,8.1665]
[1742313155515,0.05208862,122.47,122.45,8.22802556]
[1742313155712,0.05208862,122.47,122.45,0.06112556]
[1742313155911,0.05208862,122.47,122.46,8.1665]
[1742313156619,0.05208862,122.47,122.45,8.22792556]
[1742313157020,0.05208862,122.47,122.45,0.06112556]
[1742313157411,0.05208862,122.47,122.46,8.1665]
[1742313158717,13.380036,122.53,122.45,52.33836802]
[1742313158919,13.380036,122.53,122.45,56.37454246]
[1742313159221,13.81743798,122.52,122.48,21.98223798]
[1742313159423,13.81743798,122.52,122.48,44.47743798]
[1742313159818,13.380036,122.53,122.49,8.1645]
[1742313160017,0.05360309,122.51,122.49,8.21851062]
[1742313160318,0.05360309,122.51,122.5,21.98133798]
[1742313160627,0.05360309,122.51,122.5,291.42133798]
[1742313160820,11.220036,122.56,122.5,283.25743798]
[1742313161015,11.220036,122.56,122.54,13.81743798]
[1742313161419,11.220036,122.56,122.54,21.97813798]
[1742313161614,11.220036,122.56,122.54,8.1607]
[1742313161820,11.220036,122.56,122.52,21.57137728]
[1742313162119,11.28078946,122.56,122.54,30.7196218]
[1742313162321,11.28078946,122.56,122.54,0.0596218]
[1742313162619,19.44118946,122.56,122.54,0.0596218]
[1742313163618,11.28078946,122.56,122.54,0.0596218]
[1742313164018,0.06075346,122.56,122.54,0.0596218]
[1742313165420,8.22085346,122.56,122.54,0.0596218]
[1742313167524,52.23213074,122.56,122.5,269.44]
[1742313167728,21.57137728,122.54,122.47,30.62]
[1742313167927,8.1642,122.5,122.47,30.62]
[1742313168223,21.57137728,122.52,122.47,30.62]
[1742313168422,30.62,122.53,122.47,30.62]
[1742313168728,0.05297554,122.51,122.49,8.21934473]
[1742313168925,0.05297554,122.51,122.5,30.62]
[1742313169528,0.05297554,122.51,122.5,38.7839]
[1742313173721,7.554e-05,122.51,122.5,38.7839]
[1742313173926,7.554e-05,122.51,122.5,60.35527728]
[1742313178132,7.554e-05,122.51,122.5,30.62]
[1742313178833,7.554e-05,122.51,122.5,38.7839]
[1742313183328,7.554e-05,122.51,122.5,60.35527728]
[1742313185039,7.554e-05,122.51,122.5,38.7839]
[1742313186339,7.554e-05,122.51,122.5,60.35527728]
[1742313190041,2.091,122.57,122.5,60.35527728]
[1742313190338,2.091,122.57,122.52,21.57137728]
[1742313190543,2.091,122.57,122.55,8.1602]
[1742313191245,2.14937166,122.57,122.55,8.21158705]
[1742313191646,2.14937166,122.57,122.55,0.05138705]
[1742313192354,8.1599,122.56,122.55,0.05138705]
[1742313192748,8.1612,122.54,122.53,269.3]
[1742313194152,2.0388,122.55,122.53,269.3]
[1742313194346,2.14937166,122.57,122.53,269.3]
[1742313194750,2.14937166,122.57,122.56,8.1599]
[1742313195156,0.05837166,122.57,122.56,8.1599]
[1742313196157,30.57837166,122.57,122.55,0.06020246]
[1742313196357,21.57137728,122.56,122.53,269.3]
[1742313196557,8.1619,122.53,122.5,30.52]
[1742313196958,2.1611,122.55,122.5,38.6835]
[1742313197160,8.1616,122.54,122.5,30.52]
[1742313197354,2.1611,122.55,122.5,30.52]
[1742313197554,0.05815528,122.53,122.52,8.1625]
[1742313199355,0.05815528,122.53,122.51,0.05344005]
[1742313200969,0.05815528,122.53,122.51,8.21654005]
[1742313201761,0.05815528,122.53,122.51,0.05344005]
[1742313202763,0.05815528,122.53,122.51,8.21654005]
[1742313202971,0.05815528,122.53,122.51,0.05344005]
[1742313205067,0.05815528,122.53,122.51,269.35344005]
[1742313205465,8.22065528,122.53,122.51,269.35344005]
[1742313207872,8.1625,122.52,122.51,269.35344005]
[1742313208971,8.22045528,122.53,122.51,277.51654005]
[1742313210265,8.1625,122.52,122.51,0.05344005]
[1742313211671,8.22045528,122.53,122.51,0.05344005]
[1742313212379,8.1625,122.52,122.51,0.05344005]
[1742313217075,10.3342,122.52,122.51,0.05344005]
[1742313217477,24.15531178,122.52,122.51,0.05344005]
[1742313219278,15.99281178,122.52,122.51,0.05344005]
[1742313219573,13.87926706,122.53,122.51,0.05344005]
[1742313219781,0.05815528,122.53,122.51,30.57344005]
[1742313219974,0.05815528,122.53,122.52,8.1625]
[1742313221579,0.05815528,122.53,122.51,38.73634005]
[1742313222477,8.22005528,122.53,122.51,38.73634005]
[1742313222877,0.05815528,122.53,122.51,0.05344005]
[1742313223079,8.1625,122.52,122.51,0.05344005]
[1742313223780,8.22035528,122.53,122.51,0.05344005]
[1742313224280,0.05815528,122.53,122.51,0.05344005]
[1742313224675,8.1625,122.52,122.51,0.05344005]
[1742313226977,29.74607528,122.52,122.51,0.05344005]
[1742313227181,8.1646,122.49,122.48,30.52]
[1742313227381,23.66057528,122.52,122.46,299.86]
[1742313227775,8.1643,122.5,122.47,8.1655]
[1742313227978,8.1643,122.5,122.46,299.86]
[1742313228176,2.077,122.52,122.46,299.86]
[1742313228379,2.077,122.52,122.49,8.1642]
[1742313228582,0.05266862,122.5,122.46,299.86]
[1742313229783,0.05266862,122.5,122.48,8.1648]
[1742313231177,0.05266862,122.5,122.49,8.1645]
[1742313231378,0.05266862,122.5,122.47,30.52]
[1742313231577,0.05266862,122.5,122.48,8.1649]
[1742313232585,8.21666862,122.5,122.47,38.6855]
[1742313234086,0.05266862,122.5,122.47,38.6855]
[1742313234883,0.05266862,122.5,122.48,8.1651]
[1742313235489,8.21656862,122.5,122.47,38.6856]
[1742313235686,0.05266862,122.5,122.46,269.34]
[1742313235989,0.05266862,122.5,122.46,299.86]
[1742313236188,21.6362439,122.5,122.46,269.34]
[1742313236884,21.6362439,122.5,122.46,277.5062]
[1742313237390,0.05266862,122.5,122.46,269.34]
[1742313237892,0.05266862,122.5,122.49,8.1645]
[1742313240586,0.05266862,122.5,122.49,277.5445]
[1742313241187,0.05266862,122.5,122.49,291.35969776]
[1742313242793,0.05266862,122.5,122.49,277.5445]
[1742313244690,0.05266862,122.5,122.49,291.35969776]
[1742313249093,0.05266862,122.5,122.49,277.5445]
[1742313250092,0.05266862,122.5,122.49,308.0645]
[1742313253700,0.05266862,122.5,122.49,269.38]
[1742313253903,22.03176638,122.5,122.49,269.38]
[1742313255993,22.03176638,122.5,122.46,30.52]
[1742313255994,8.1648,122.49,122.46,30.52]
[1742313256194,13.81519776,122.48,122.46,30.52]
[1742313256399,13.81519776,122.47,122.46,8.1662]
[1742313256902,13.81519776,122.48,122.46,8.1662]
[1742313257298,21.98039776,122.48,122.46,8.1662]
[1742313257700,21.98039776,122.48,122.45,277.5268]
[1742313258999,8.166,122.47,122.45,269.36]
[1742313259195,21.98119776,122.47,122.45,269.36]
[1742313259395,22.04340002,122.47,122.45,269.36]
[1742313260004,22.04340002,122.47,122.45,277.527]
[1742313260399,22.04340002,122.47,122.45,269.36]
[1742313262101,0.06220226,122.47,122.45,277.5271]
[1742313264107,8.22840226,122.47,122.45,277.5271]
[1742313264408,0.06220226,122.47,122.45,269.36]
[1742313264803,13.87740002,122.47,122.45,269.36]
[1742313265110,22.04360002,122.47,122.45,269.36]
[1742313265609,0.06220226,122.47,122.45,269.36]
[1742313265804,0.06220226,122.47,122.45,8.1668]
[1742313266011,13.87740002,122.47,122.42,44.33519776]
[1742313266410,22.04360002,122.47,122.44,8.1675]
[1742313266610,0.06220226,122.47,122.42,13.81519776]
[1742313266807,0.06220226,122.47,122.43,30.52]
[1742313267005,8.22860226,122.47,122.44,8.1675]
[1742313269011,0.06220226,122.47,122.45,8.1671]
[1742313270116,8.22840226,122.47,122.44,8.1675]
[1742313270711,8.1666,122.46,122.44,8.1675]
[1742313270918,0.06220226,122.47,122.44,8.1675]
[1742313271416,8.22840226,122.47,122.44,8.1675]
[1742313272015,21.98189776,122.46,122.44,8.1675]
[1742313272215,13.81519776,122.46,122.43,30.52]
[1742313272616,8.1676,122.45,122.41,313.73519776]
[1742313273011,8.1676,122.45,122.42,8.1686]
[1742313273012,0.05809297,122.44,122.42,8.1686]
[1742313274320,8.22609297,122.44,122.42,8.1686]
[1742313275206,8.22609297,122.44,122.41,299.92]
[1742313275207,13.81519776,122.43,122.41,269.4]
[1742313275415,13.81519776,122.42,122.41,269.4]
[1742313275619,13.81519776,122.42,122.4,8.1703]
[1742313275813,21.98429776,122.43,122.4,8.1703]
[1742313276213,0.06167836,122.42,122.4,8.1703]
[1742313277111,0.06167836,122.42,122.38,30.52]
[1742313277112,8.23087836,122.42,122.39,8.1709]
[1742313277418,22.04607612,122.42,122.39,8.1709]
[1742313278122,13.87687612,122.42,122.4,8.1705]
[1742313278922,22.04607612,122.42,122.39,8.1708]
[1742313280222,21.98509776,122.41,122.38,8.1715]
[1742313281022,13.81519776,122.41,122.38,8.1715]
[1742313282020,13.81519776,122.4,122.37,277.6122]
[1742313282319,13.81519776,122.4,122.37,269.44]
[1742313282521,30.52,122.41,122.37,269.44]
[1742313282522,44.33519776,122.41,122.37,269.44]
[1742313283121,0.06167836,122.42,122.38,13.81519776]
[1742313283716,0.06167836,122.42,122.39,13.81519776]
[1742313284321,0.06167836,122.42,122.4,8.1699]
[1742313285914,0.06167836,122.42,122.41,21.98509776]
[1742313290124,7.836e-05,122.42,122.41,21.98509776]
[1742313295833,7.836e-05,122.42,122.41,291.50509776]
[1742313300730,7.836e-05,122.42,122.41,293.54849776]
[1742313312843,21.98009776,122.49,122.46,8.1661]
[1742313313944,22.03281467,122.49,122.46,8.22649609]
[1742313315949,13.81519776,122.48,122.46,8.22649609]
[1742313317143,13.81519776,122.48,122.47,8.1659]
[1742313317546,13.81519776,122.48,122.46,0.06039609]
[1742313317746,8.21751691,122.49,122.46,8.22669609]
[1742313318145,13.81519776,122.48,122.46,8.22669609]
[1742313318350,0.05271691,122.49,122.47,13.81519776]
[1742313318643,0.05271691,122.49,122.48,30.52]
[1742313318848,0.05271691,122.49,122.48,38.6852]
[1742313319047,0.05271691,122.49,122.48,52.50039776]
[1742313322447,1.691e-05,122.49,122.48,52.50039776]
[1742313324249,1.691e-05,122.49,122.48,38.6852]
[1742313324441,1.691e-05,122.49,122.46,30.58039609]
[1742313325139,1.691e-05,122.49,122.47,8.1655]
[1742313325749,1.691e-05,122.49,122.48,8.1652]
[1742313326550,1.691e-05,122.49,122.47,8.1655]
[1742313327145,13.81521467,122.49,122.46,30.58039609]
[1742313327339,13.81519776,122.48,122.46,30.58039609]